Cogmind - Beta 15 @@@ ROGUE MODE // 2025.07.21 @ 18:55:30 Player: Florist Result: Destroyed by D-53 Grenadier with Mini Grenade Launcher Performance ------------- Evolutions (0) 0 Regions Visited (2) 400 Robots Destroyed (39) 195 Value Destroyed (843) 843 Prototype IDs (0) 0 Alien Tech Used (0) 0 Bonus (0) 0 TOTAL SCORE: 1438 Bonus ------- None Cogmind --------- Core Integrity 0/250 Matter 236/300 Energy 160/160 System Corruption 0% Temperature Cool (6) Movement Core (550) Ox10 Location -10/Mines Parts ------- > --- POWER (1) -------- Light Nuclear Core > --- PROPULSION (2) --- (None) > --- UTILITY (2) ------ Large Storage Unit > --- WEAPON (2) ------- Grenade Launcher Grenade Launcher > --- INVENTORY (15) --- Aluminum Leg Wheel Compact Wheel Improved Heat Sink Seismic Detector Seismic Detector Light Armor Plating Light Armor Plating Light Armor Plating Hacking Suite Light Assault Rifle Autogun Autogun Autogun Autogun Peak State ------------ > --- POWER ------------ Light Nuclear Core > --- PROPULSION ------- Light Treads Light Treads > --- UTILITY ---------- Large Storage Unit Seismic Detector > --- WEAPON ----------- Autogun Autogun > --- INVENTORY -------- Aluminum Leg Wheel Compact Wheel Improved Heat Sink Seismic Detector Light Armor Plating Light Armor Plating Light Armor Plating Light Armor Plating Hacking Suite Light Assault Rifle Autogun Autogun Grenade Launcher Grenade Launcher [Rating: 13] Favorites ----------- Power Light Ion Engine Engine Light Ion Engine Power Core Light Nuclear Core Propulsion Light Treads Treads Light Treads Utility Large Storage Unit Device Seismic Detector Storage Large Storage Unit Protection Light Armor Plating Weapon Autogun Energy Gun Medium Laser Ballistic Gun Autogun Launcher Grenade Launcher Build | -11 -10 -10 ------- Run | Yrd Mat Min Slots Evolved . | . . . Power . | . . . Propulsion . | . . . Utility . | . . . Weapon . | . . . Parts Attached 19 | 8 8 3 Power 3 | 1 2 . Engine 2 | 1 1 . Core 1 | . 1 . Reactor . | . . . Propulsion 3 | 2 1 . Treads 3 | 2 1 . Leg . | . . . Wheel . | . . . Hover . | . . . Flight . | . . . Utility 6 | 3 2 1 Device 3 | 2 1 . Storage 2 | 1 1 . Processor . | . . . Hackware . | . . . Protection 1 | . . 1 Artifact . | . . . Weapon 7 | 2 3 2 Energy Gun 1 | 1 . . Energy Cannon . | . . . Ballistic Gun 4 | 1 3 . Ballistic Cannon . | . . . Launcher 2 | . . 2 Special Weapon . | . . . Impact Weapon . | . . . Slashing Weapon . | . . . Piercing Weapon . | . . . Special Melee Weapon . | . . . Unidentified Prototypes . | . . . Parts Lost 10 | . 7 3 Power 2 | . 2 . Propulsion 3 | . 1 2 Utility 2 | . 1 1 Weapon 3 | . 3 . Highest Loss Streak 4 | . 4 2 To Critical Strikes . | . . . Average Backups 13 | 3 13 15 Power . | . . . Propulsion 2 | 1 2 3 Utility 6 | . 6 7 Weapon 3 | . 3 5 Tool/Special . | . . . Unused Backups 14 | . 2 12 Power . | . . . Propulsion 3 | . . 3 Utility 7 | . 1 6 Weapon 4 | . 1 3 Tool/Special . | . . . Average Slot Usage (%) 86 | . 87 85 Engine 5 | . 6 . Core 3 | . 1 14 Treads 21 | . 22 14 Device 11 | . 13 . Storage 14 | . 14 14 Protection 2 | . . 14 Energy Gun 6 | . 8 . Ballistic Gun 20 | . 19 27 Peak Build Rating 13 | 7 13 13 Average Rating 9 | 5 8 11 On Entrance 6 | . 7 13 Naked Turns . | . . . Heaviest Build 34 | 13 32 34 Greatest Support 40 | 40 40 20 Greatest Overweight (x) 1 | 1 1 1 Average Overweight (x) . | . . 1 Largest Inventory Capacity 15 | 8 15 15 Average Capacity 14 | 7 14 15 Most Carried 15 | 5 15 15 Average Carried 13 | 3 13 15 Final Capacity 15 | 8 15 15 Final Carried 15 | 5 15 15 Class Distribution -------------------- 100% | Mutant Dominant Class ---------------- Mutant | -10/Materials Mutant | -10/Mines Resources | -11 -10 -10 ----------- Run | Yrd Mat Min Matter Collected 950 | 318 508 124 Remotely 112 | 112 . . Salvage Created 1505 | 145 1165 195 Parts 93 | 11 70 12 Haulers Intercepted 2 | . 2 . Recyclers Shooed 4 | 1 2 1 Parts Field Recycled . | . . . Retrieved Matter . | . . . Parts Self-Destructed . | . . . Prevented . | . . . Kills | -11 -10 -10 ------- Run | Yrd Mat Min Combat Hostiles Destroyed 25 | . 20 5 Guns 25 | . 20 5 Classes Destroyed 9 | 2 7 . Worker 2 | . 2 . Builder 1 | . 1 . Tunneler 3 | 3 . . Hauler 2 | . 2 . Recycler 4 | 1 2 1 Mechanic 1 | . 1 . Operator 1 | . 1 . Swarmer 6 | . 3 3 Grunt 19 | . 17 2 Best Kill Streak 4 | 4 4 3 Combat Bots Only 4 | . 4 3 Max Kills in Single Turn 1 | 1 1 1 Gunslinging . | . . . Exploded . | . . . Melee . | . . . Uniques/NPCs Destroyed . | . . . Combat | -11 -10 -10 -------- Run | Yrd Mat Min Hostile Shots Fired 147 | . 109 38 Missed 26 | . 21 5 Hits 121 | . 88 33 Projectile 121 | . 88 33 AOE 5 | . . 5 Critical Strikes 3 | . 2 1 Damage Taken 1422 | . 954 468 Core 251 | . 132 119 Absorbed by Shields . | . . . Core Remaining (%) 100 | 100 . . Volleys Fired 157 | 16 122 19 Largest 2 | 2 2 2 Hottest 70 | 70 70 60 Shots Fired 308 | 32 238 38 Gun 306 | 32 238 36 Cannon . | . . . Launcher 2 | . . 2 Special . | . . . Kinetic 207 | 16 155 36 Thermal 99 | 16 83 . Explosive 2 | . . 2 Electromagnetic . | . . . Robot Hit Streak 11 | 5 11 9 Robot Miss Streak 5 | 3 4 5 Penetration Max . | . . . Secondary Targets 5 | . 2 3 Max Gunslinging Chain 1 | . 1 1 Shots Hit Robots 197 | 20 150 27 Core Hits 76 | 5 58 13 Critical Kills . | . . . Critical Parts Destroyed 3 | . 3 . Critical Strikes 8 | . 8 . Burn 5 | . 5 . Destroy 3 | . 3 . Melee Attacks . | . . . Impact . | . . . Slashing . | . . . Piercing . | . . . Sneak Attacks . | . . . Combat Hostiles . | . . . Follow-up Attacks . | . . . Damage Inflicted 2538 | 251 1892 395 Guns 2506 | 251 1892 363 Cannons . | . . . Explosions 32 | . . 32 Melee . | . . . Ramming . | . . . Kinetic 1753 | 114 1276 363 Thermal 753 | 137 616 . Explosive 32 | . . 32 Electromagnetic . | . . . Impact . | . . . Slashing . | . . . Piercing . | . . . Highest Corruption . | . . . Average Corruption . | . . . Corruption Purged . | . . . Corruption Blocked . | . . . Overload Shots . | . . . Overflow Damage . | . . . Projectiles . | . . . Explosions . | . . . Melee . | . . . Knockbacks . | . . . Impact . | . . . Kinetic . | . . . Secondary . | . . . Self-Inflicted Damage . | . . . Shots . | . . . Rammed . | . . . Targets Rammed . | . . . Kicked . | . . . Crushed . | . . . Highest Temperature 256 | 144 256 159 Average Temperature 57 | 72 54 56 Received Heat Transfer 540 | . 459 81 Siege Activations . | . . . Martial Activations . | . . . Shielding Activations . | . . . Robots Disrupted . | . . . Combat Hostiles . | . . . Robots Corrupted . | . . . Combat Hostiles . | . . . Parts Fried . | . . . Impact Corruptions . | . . . Robots Melted . | . . . Combat Hostiles . | . . . Parts Melted 2 | . 2 . Heat Transferred 2590 | 407 2183 . Parts Sabotaged . | . . . Parts Stolen . | . . . Parts Stripped . | . . . Power Chain Reactions . | . . . Alert | -11 -10 -10 ------- Run | Yrd Mat Min Maximum Alert Level 1 | . 1 . Low Security (%) 97 | 100 96 100 Level 1 2 | . 3 . Level 2 . | . . . Level 3 . | . . . Level 4 . | . . . Level 5 . | . . . High Security . | . . . Max Security . | . . . Peak Influence 216 | 10 216 140 Initial 80 | . . 80 Average 61 | . 66 61 Influence Increases 779 | 20 621 138 Destroy 0b10 Robot/C 500 | . 400 100 Destroy 0b10 Robot/NC 70 | 20 45 5 Destroy Leader 104 | . 84 20 Successful Hack 15 | . 15 . Destroy Structure 15 | . 2 13 Lose Combat Pursuer 75 | . 75 . Influence Decreases 774 | 20 414 340 Entered New Map 127 | . . 127 Time Decay 577 | 20 354 203 Lost Part 70 | . 60 10 Squads Dispatched 4 | . 4 . Investigation 2 | . 2 . Extermination . | . . . Reinforcement 2 | . 2 . Assault . | . . . Garrison . | . . . Intercept . | . . . Searches Triggered . | . . . Construction Impeded . | . . . Haulers Reinforced . | . . . Active Scanning Responses . | . . . Cargo Convoy Interrupts . | . . . Stealth | -11 -10 -10 --------- Run | Yrd Mat Min Distress Signals 1 | . 1 . Communications Jammed . | . . . Distress Signals . | . . . Times Spotted 52 | . 45 7 Peak Tracking Total 5 | . 5 3 Tactical Retreats 4 | . 4 . Traps | -11 -10 -10 ------- Run | Yrd Mat Min Traps Triggered 2 | . 2 . Indirectly . | . . . Trap Hack Attempts . | . . . Triggered . | . . . Disarmed . | . . . Reprogrammed . | . . . Reused . | . . . Traps Extracted . | . . . Installed . | . . . Triggered . | . . . Machines | -11 -10 -10 ---------- Run | Yrd Mat Min Machines Disabled . | . . . Max in Single Turn . | . . . Machines Repaired . | . . . Machines Dismantled . | . . . Machines Sabotaged . | . . . Overloaded Fab Kills . | . . . Hacking | -11 -10 -10 --------- Run | Yrd Mat Min Machines Accessed 3 | . 3 . Terminals 3 | . 3 . Fabricators . | . . . Repair Stations . | . . . Recycling Units . | . . . Scanalyzers . | . . . Garrison Access . | . . . Total Hacks 12 | . 12 . Successful 7 | . 7 . Failed 5 | . 5 . Catastrophic 1 | . 1 . Database Lockouts . | . . . Manual 9 | . 9 . Terminals 12 | . 12 . Fabricators . | . . . Repair Stations . | . . . Recycling Units . | . . . Scanalyzers . | . . . Garrison Access . | . . . Terminal Hacks 2 | . 2 . Branch Access Points 1 | . 1 . Locate Traps 1 | . 1 . Fabricator Hacks . | . . . Repair Station Hacks . | . . . Recycling Unit Hacks . | . . . Scanalyzer . | . . . Garrison Access Hacks . | . . . Unauthorized Hacks 5 | . 5 . Terminals 5 | . 5 . Botnet 3 | . 3 . Skim 2 | . 2 . Fabricators . | . . . Repair Stations . | . . . Recycling Units . | . . . Scanalyzers . | . . . Garrison Access . | . . . Data Cores Recovered . | . . . Used . | . . . Hacking Detections 2 | . 2 . Full Trace Events . | . . . Feedback Events . | . . . Feedback Blocked . | . . . Robot Schematics Acquired . | . . . Robots Built . | . . . Authchips . | . . . Time . | . . . Total Robot Build Rating . | . . . Part Schematics Acquired . | . . . Parts Built . | . . . Authchips . | . . . Time . | . . . Total Part Build Rating . | . . . Parts Repaired . | . . . Time . | . . . Parts Recycled . | . . . Recycled Matter . | . . . Retrieved Matter . | . . . Retrieved Components . | . . . Parts Scanalyzed . | . . . Part Schematics Acquired . | . . . Parts Damaged . | . . . Bothacking | -11 -10 -10 ------------ Run | Yrd Mat Min Used RIF Installer . | . . . Robots Hacked . | . . . Non-combat . | . . . Combat . | . . . Robot Hacks Applied . | . . . Relay Couplers Released . | . . . Fabnet Peak Effective % . | . . . Robots Rewired . | . . . Allies Hacked . | . . . Hacks Repelled . | . . . Allies | -11 -10 -10 -------- Run | Yrd Mat Min Total Allies 2 | . . 2 Largest Group 2 | . . 2 Highest-Rated Group 42 | . . 42 Highest-Rated Ally 31 | . . 31 Total Orders . | . . . Ally Attacks 2 | . . 2 Total Damage 20 | . . 20 Kills . | . . . Allies Corrupted . | . . . Allies Melted . | . . . Intel | -11 -10 -10 ------- Run | Yrd Mat Min Active Infowar (turns) 1892 | 22 1870 . Seismic 1892 | 22 1870 . Robot Analysis Total . | . . . Derelict Logs Recovered . | . . . Drone Launches . | . . . Drone Recoveries . | . . . Exploration | -11 -10 -10 ------------- Run | Yrd Mat Min Turns Passed 2514 | 144 1929 441 Spaces Moved 912 | 51 712 149 Core 3 | 3 . . Treads 909 | 48 712 149 Legs . | . . . Wheels . | . . . Hover . | . . . Flight . | . . . Fastest Speed 50 | 50 160 240 Average Speed 194 | 154 187 240 Slowest Speed 240 | 160 240 240 Overloaded Moves . | . . . Propulsion Burnouts . | . . . Robots Hopped . | . . . Potential Cave-ins . | . . . Cave-ins Triggered . | . . . Exploration Rate (%) 44 | 4 83 46 Regions Visited 2 Branch Regions 1 Pre-discovered Areas . | . . . Known Exits Taken 1 | . 1 . Unknown Exits Taken 1 | 1 . . Scrap Searched . | . . . Spaces Dug . | . . . Terrain Destroyed 17 | . . 17 Melee . | . . . Projectile . | . . . AOE 17 | . . 17 Terrain Rammed . | . . . Walls Destroyed . | . . . Machines Disabled . | . . . Actions | -11 -10 -10 --------- Run | Yrd Mat Min Total 1368 | 81 1087 200 Wait 256 | . 227 29 Move 910 | 50 711 149 Hop . | . . . Pick Up 22 | 6 16 . Fast Attach 10 | 7 3 . Attach 5 | 1 4 . Detach . | . . . Swap 4 | . 1 3 Drop 4 | 1 3 . Fire 157 | 16 122 19 Melee . | . . . Ram . | . . . Kick . | . . . Crush . | . . . Escape Stasis . | . . . Rewire . | . . . Trap . | . . . Miscellaneous . | . . . Route ------- -11/Scrapyard -10/Materials (discovered 5 exits: [*Mat x3] / *Min x2) -10/Mines History --------- Turn | Location | Event 5 | -11/Scrapyard | Discovered new exit (range 16) 145 | -11/Scrapyard | Entered Materials 237 | -10/Materials | Identified exit to Mines 311 | -10/Materials | Build established: Mutant 589 | -10/Materials | Discovered new exit (range 13) 1186 | -10/Materials | Discovered new exit (range 3) 1344 | -10/Materials | Lost 4 parts (1p1n2w) 1559 | -10/Materials | Discovered new exit (range 14) 1956 | -10/Materials | Core integrity fell below 50% 2074 | -10/Materials | Entered Mines 2508 | -10/Mines | Assembled infested the area 2515 | -10/Mines | Core integrity fell below 20% 2515 | -10/Mines | Destroyed by D-53 Grenadier with Mini Grenade Launcher Last Messages --------------- 02219_ T-07 Excavator is excavating. 02224_ K-01 Serf collects debris. 02227_ T-07 Excavator is excavating. 02297_ G-47 Trooper destroyed. 02297_ Switching to secondary target: G-34 Mercenary. 02300_ R-06 Scavenger collects Imp. Heat Sink. 02303_ R-06 Scavenger collects Lgt. Nuclear Core. 02312_ G-34 Mercenary destroyed. 02315_ Acquired 38 matter. 02369_ A pair of derelicts emerge from the shadows: "We're, um, lost. You wouldn't happen to know the way out of here, would you?" 02508_ ALERT: Infestation in the mines, dispatching Demolisher response squad. 02510_ C-30 ARC bursts open, deploying its payload. 02510_ D-53 Grenadier unfolds itself. 02511_ 5S-J3C(h): "I'll hold them off! Go on ahead or try to find another way!" 02512_ Lgt. Treads destroyed. 02512_ Lgt. Armor Plating destroyed. 02512_ 5S-J3C(h) destroyed. Map ----- +----------------------------------------------------+ | ???????# ##???????????????????????????????????? | | ???????# ##????????????????????????????????????? | | ??????## #?????????????????????????????????????? | | ??##### #?????????????????????????????????????? | | ?## #?????????????????????????????????????? | | ## #?????????????????????????????????????? | | # ##?????????????????????????????????????? | | ##??????????????????????????????????????? | | ######???????????????????????????????????????? | | ##???#######??????????????????????????????????? | | #????# #???????????? ?????????????????????? | | ###### ## #???????????? ???????????????????? | | ## #####???????? ????????????????? | | ## ##??????? ????????????????? | | ####### ######? % #????????????????? | | ##????# #? #????????????????? | | #?????# #? dd ?????????????????? | | #?????## ####### ##????????????????? | | ##??????### #???????? #####????????????? | | ###?????????# #?????????? t?????????????? | | ????????????# #???####### ???????????????? | | ????????????# #??## ##???????????????? | | ????????????# #?## #???????????????? | | ????????????# #?# #???????????????? | | ????????????# ### #???????????????? | | ????????????# ## @ #???????????????? | | ????????????# g #???????????????? | | ???????????## # #??????????????? | | ??????????## z #?? #?????????????? | | ?????????## ## ##????? #????????????? | | ????????## #??##????????????????????? | | ????????# ##????????????????????????? | | ????????# ##??###???????????????????? | | ????????## ### ##??????????????????? | | ?????????### #??????????????????? | | ???????????####### #??????????????????? | | ?????????????????## ##??????????????????? | | ??????????????????## ####???????????????????? | | ???????????????????#### ##??????????????????????? | | ??????????????????????####???????????????????????? | | ?????????????????????????????????????????????????? | | ?????????????????????????????????????????????????? | | ?????????????????????????????????????????????????? | | | | | | | | | | | | | | | +----------------------------------------------------+ Best States ------------- Heat Dissipation 25 Energy Generation 14 Energy Capacity 250 Matter Stores 300 Matter Capacity 300 Sight Range 16 Terrain Scan Density 10 Armor Coverage 150 Evasion (%) 40 Recoil Reduction 2 Item Schematics ----------------- None Robot Schematics ------------------ None Fabricated ------------ Nothing Repaired ---------- Nothing Alien Tech Used ----------------- None Achievements -------------- None Challenges ------------ None Game ------ Seed SurveybotChromionFragment Manual? 0 Play Time 00:13:52 Cumulative 192.2 hours Start 2025.07.10 @ 11:33:47 End 2025.07.21 @ 18:55:30 Sessions 5 Manual Loads 0 Difficulty Rogue Special Mode None Game No. 171 Rogue 171 Adventurer 0 Explorer 0 Win Type - Total 10 Types 5/0/3/2/0/0/0/0/0/0 Lore% 73 Gallery% 68 Achievement% 65 Wizard Run 0 Options --------- Layout 1 ASCII 0 Keyboard 0 Movement Numpad Keybinds 0 Fullscreen 1 Font 32/SmallcapsGlow Map View 77x35 Zoom Use 0% Tactical HUD 1 Map Filters NONE Filters NONE Steam 1 RUN: add9e9f5-b6d3-4586-8f5b-b6ba6c868efd